fUST/lending_fUST_20260411
["ID","MTS","AMOUNT","RATE_DAILY","PERIOD"]
[420273610,1775899845570,-152.0,9.513e-05,2]
[420273611,1775899845587,-152.0,9.513e-05,2]
[420273612,1775899845599,-152.0,9.513e-05,2]
[420273613,1775899845611,-152.0,9.513e-05,2]
[420273614,1775899845637,-152.0,9.513e-05,2]
[420273615,1775899845824,-152.0,9.513e-05,2]
[420273616,1775899845835,-152.0,9.516e-05,2]
[420273617,1775899845846,-152.0,9.516e-05,2]
[420273618,1775899845871,-152.0,9.516e-05,2]
[420273619,1775899845881,-152.0,9.516e-05,2]
[420273620,1775899845920,-152.0,9.516e-05,2]
[420273621,1775899845929,-152.0,9.519e-05,2]
[420273622,1775899845966,-152.0,9.519e-05,2]
[420273623,1775899845980,-152.0,9.701e-05,2]
[420273624,1775899846001,-152.0,9.701e-05,2]
[420273625,1775899846025,-152.0,9.701e-05,2]
[420273626,1775899846035,-152.0,9.701e-05,2]
[420273627,1775899846044,-500.0,9.702e-05,2]
[420273628,1775899846065,-500.0,9.702e-05,2]
[420273629,1775899846077,-500.0,9.702e-05,2]
[420273630,1775899846087,-500.0,9.702e-05,2]
[420273631,1775899846102,-338.03717579,9.702e-05,2]
[420273632,1775899846114,-500.0,9.702e-05,2]
[420273633,1775899846123,-500.0,9.702e-05,2]
[420273634,1775899846143,-500.0,9.702e-05,2]
[420273635,1775899846153,-500.0,9.702e-05,2]
[420273636,1775899846165,-500.0,9.702e-05,2]
[420273639,1775899846184,-500.0,9.702e-05,2]
[420273640,1775899846210,-500.0,9.702e-05,2]
[420273641,1775899846219,-500.0,9.702e-05,2]
[420273642,1775899846236,-500.0,9.702e-05,2]
[420273643,1775899846253,-500.0,9.702e-05,2]
[420273644,1775899846266,-500.0,9.702e-05,2]
[420273645,1775899846283,-423.55003139,9.702e-05,2]
[420273646,1775899846295,-152.0,9.704e-05,2]
[420273647,1775899846308,-152.0,9.704e-05,2]
[420273648,1775899846319,-152.0,9.704e-05,2]
[420273649,1775899846333,-152.0,9.704e-05,2]
[420273650,1775899846343,-152.0,9.704e-05,2]
[420273651,1775899846356,-152.0,9.704e-05,2]
[420273652,1775899846373,-500.0,9.891e-05,2]
[420273653,1775899846383,-537.6845,9.891e-05,2]
[420273654,1775899846395,-2150.738,9.891e-05,2]
[420273655,1775899846407,-300.0,9.897e-05,2]
[420273656,1775899846418,-300.0,9.897e-05,2]
[420273657,1775899846439,-300.0,9.897e-05,2]
[420273658,1775899846449,-300.0,9.897e-05,2]
[420273659,1775899846459,-300.0,9.897e-05,2]
[420273660,1775899846479,-300.0,9.897e-05,2]
[420273661,1775899846489,-300.0,9.897e-05,2]
[420273662,1775899846500,-300.0,9.897e-05,2]
[420273663,1775899846513,-300.0,9.897e-05,2]
[420273664,1775899846523,-300.0,9.897e-05,2]
[420273665,1775899846535,-300.0,9.897e-05,2]
[420273666,1775899846548,-300.0,9.897e-05,2]
[420273667,1775899846563,-300.0,9.897e-05,2]
[420273668,1775899846573,-300.0,9.897e-05,2]
[420273669,1775899846586,-300.0,9.897e-05,2]
[420273670,1775899846599,-196.3960556,9.913e-05,2]
[420273671,1775899846617,-557.5788265,9.946e-05,2]
[420273672,1775899846639,-170.45188775,0.0001,2]
[420273673,1775899846655,-269.91621857,0.0001,2]
[420273674,1775899846678,-578.20924308,0.00010001,2]
[420273675,1775899846690,-599.60298507,0.00010056,2]
[420273676,1775899846717,-500.0,0.00010058,2]
[420273677,1775899846735,-463.92560191,0.00010058,2]
[420273678,1775899846754,-414.11309699,0.00010058,2]
[420273679,1775899846798,-500.0,0.00010058,2]
[420273680,1775899846829,-500.0,0.00010058,2]
[420273681,1775899846854,-500.0,0.00010058,2]
[420273682,1775899846897,-500.0,0.00010058,2]
[420273683,1775899846945,-500.0,0.00010058,2]
[420273684,1775899846954,-606.04847014,0.00010058,2]
[420273685,1775899846967,-500.0,0.00010058,2]
[420273686,1775899846987,-500.0,0.00010058,2]
[420273687,1775899847006,-600.0,0.00010058,2]
[420273688,1775899847016,-41300.89284601,0.00010059,2]
[420273689,1775899847079,-2022.38299121,0.00010059,2]
[420273690,1775899847093,-14354.34653285,0.00010059,2]
[420273691,1775899847162,-5257.00513584,0.00010059,2]
[420273692,1775899847633,-11862.69992182,0.00010059,2]
[420273708,1775899853682,-1896.0,0.00010059,2]
[420273777,1775900436888,5000.0,9e-05,2]
[420273779,1775900444897,3879.21982517,9e-05,2]
[420273780,1775900459555,4329.55870063,9e-05,2]
[420273790,1775900531615,13120.8869448,8.909e-05,2]
[420273810,1775900623629,1130.29265018,9e-05,2]
[420273814,1775900624833,158.4099187,4.426e-05,2]
[420273957,1775901031944,-921.88,9e-05,2]
[420273958,1775901031963,-546.0,9e-05,2]
[420273959,1775901031997,-300.0,9.61e-05,2]
[420273962,1775901032031,-300.0,9.61e-05,2]
[420273974,1775901032276,-300.0,9.61e-05,2]
[420273977,1775901032294,-1200.0,9.61e-05,2]
[420273978,1775901032326,-224.03810831,9.611e-05,2]
[420273981,1775901032338,-1120.78017483,9.611e-05,2]
[420273988,1775901032434,-2033.60907635,9.611e-05,2]
[420273990,1775901032457,-253.23798838,9.611e-05,2]
[420273992,1775901032467,-1592.37276044,9.759e-05,2]
[420274021,1775901038424,-435.0,9.759e-05,2]
[420274022,1775901038464,-135612.15766944,9.759e-05,2]
[420274023,1775901038501,-998.5915468,9.759e-05,2]
[420274041,1775901046285,-2568.29866667,9.759e-05,2]
[420274042,1775901046313,-797.81573425,9.759e-05,2]
[420274045,1775901058722,2300.63714831,9e-05,2]
[420274055,1775901101818,2699.36285169,9e-05,2]
[420274147,1775901343156,990.0,9e-05,2]
[420274191,1775901647320,-931.18714392,9e-05,2]
[420274192,1775901647356,-265.43057593,9.024e-05,2]
[420274199,1775901676901,-431.18714392,9.024e-05,2]
[420274200,1775901676951,-68.81285608,9.024e-05,2]
[420274203,1775901706050,-431.18714392,9.024e-05,2]
[420274204,1775901738050,1646.93259759,9e-05,2]
[420274207,1775901745743,480.87226618,9e-05,2]
[420274347,1775902153767,474.3,9e-05,2]
[420274398,1775902232303,-469.74779629,9.024e-05,2]
[420274400,1775902232322,-76.25220371,9.024e-05,2]
[420274402,1775902232332,-1472.95847441,9.024e-05,2]
[420274404,1775902232346,-281.6786739,9.024e-05,2]
[420274437,1775902238506,-1102.91768809,9.024e-05,2]
[420274438,1775902238528,-152.7010237,9.09e-05,2]
[420274439,1775902238540,-300.0,9.322e-05,2]
[420274440,1775902238555,-636.45741205,9.322e-05,2]
[420274441,1775902238588,-563.54258795,9.322e-05,2]
[420274442,1775902238597,-688.39295943,9.323e-05,2]
[420274443,1775902238624,-2750.8182659,9.323e-05,2]
[420274444,1775902238638,-474.82315687,9.323e-05,2]
[420274445,1775902238669,-1897.39333484,9.323e-05,2]
[420274446,1775902238680,-635.5593572,9.45e-05,2]
[420274447,1775902238691,-189.26634885,9.466e-05,2]
[420274448,1775902238702,-421.775,9.466e-05,2]
[420274449,1775902238717,-500.0,9.533e-05,2]
[420274450,1775902238727,-158.2,9.533e-05,2]
[420274451,1775902238739,-500.0,9.533e-05,2]
[420274452,1775902238750,-500.0,9.533e-05,2]
[420274453,1775902238761,-500.0,9.533e-05,2]
[420274454,1775902238772,-500.0,9.533e-05,2]
[420274455,1775902238786,-500.0,9.533e-05,2]
[420274456,1775902238796,-500.0,9.533e-05,2]
[420274457,1775902238805,-500.0,9.533e-05,2]
[420274458,1775902238816,-500.0,9.533e-05,2]
[420274459,1775902238830,-500.0,9.533e-05,2]
[420274460,1775902238840,-324.74792133,9.558e-05,2]
[420274461,1775902238850,-500.0,9.558e-05,2]
[420274462,1775902238863,-500.0,9.558e-05,2]
[420274463,1775902238876,-500.0,9.558e-05,2]
[420274464,1775902238885,-634.11309699,9.558e-05,2]
[420274465,1775902238900,-500.0,9.558e-05,2]
[420274466,1775902238911,-500.0,9.558e-05,2]
[420274467,1775902238921,-315.22707032,9.558e-05,2]
[420274468,1775902238933,-500.0,9.558e-05,2]
[420274469,1775902238942,-500.0,9.558e-05,2]
[420274470,1775902238955,-165.60157332,9.558e-05,2]
[420274471,1775902238966,-500.0,9.558e-05,2]
[420274472,1775902238979,-500.0,9.558e-05,2]
[420274473,1775902238989,-200.0,9.558e-05,2]
[420274474,1775902239001,-17000.68220667,9.559e-05,2]
[420274475,1775902239021,-943.065,9.559e-05,2]
[420274488,1775902243441,-48904.85282082,9.559e-05,2]
[420274489,1775902243478,-5361.66178985,9.559e-05,2]
[420274497,1775902246323,-10535.17212801,9.559e-05,2]
[420274498,1775902246404,-3831.67377349,9.559e-05,2]
[420274546,1775902562667,218.81639683,8.813e-05,2]
[420274684,1775903424642,-154.0,9.086e-05,2]
[420274685,1775903424683,-192.96124805,9.086e-05,2]
[420274686,1775903424723,-547.0,9.086e-05,2]
[420274687,1775903424766,-337.42,9.231e-05,2]
[420274688,1775903424827,-300.0,9.292e-05,2]
[420274689,1775903424875,-300.0,9.292e-05,2]
[420274690,1775903424923,-300.0,9.292e-05,2]
[420274691,1775903424965,-154.0,9.292e-05,2]
[420274692,1775903424982,-192.96124805,9.292e-05,2]
[420274693,1775903425000,-547.0,9.292e-05,2]
[420274694,1775903425011,-306.03875195,9.292e-05,2]
[420274695,1775903425026,-31.38124805,9.293e-05,2]
[420274696,1775903425043,-128.81875195,9.293e-05,2]
[420274697,1775903425052,-158.2,9.293e-05,2]
[420274698,1775903425061,-12.98124805,9.293e-05,2]
[420274699,1775903425082,-300.0,9.293e-05,2]
[420274700,1775903425095,-187.01875195,9.293e-05,2]
[420274701,1775903425118,-112.98124805,9.293e-05,2]
[420274702,1775903425130,-45.21875195,9.293e-05,2]
[420274703,1775903425139,-500.0,9.293e-05,2]
[420274704,1775903425162,-192.01875195,9.293e-05,2]
[420274717,1775903432272,-307.98124805,9.293e-05,2]
[420274719,1775903432283,-502.73233666,9.293e-05,2]
[420274721,1775903432296,-158.2,9.293e-05,2]
[420274723,1775903432307,-160.0,9.293e-05,2]
[420274725,1775903432320,-158.0,9.293e-05,2]
[420274726,1775903432335,-167.512,9.293e-05,2]
[420274728,1775903432347,-500.0,9.293e-05,2]
[420274729,1775903432358,-296.89400683,9.293e-05,2]
[420274730,1775903432384,-203.10599317,9.293e-05,2]
[420274731,1775903432397,-500.0,9.293e-05,2]
[420274732,1775903432410,-500.0,9.293e-05,2]
[420274733,1775903432435,-500.0,9.293e-05,2]
[420274734,1775903432448,-500.0,9.293e-05,2]
[420274735,1775903432459,-500.0,9.293e-05,2]
[420274736,1775903432481,-500.0,9.293e-05,2]
[420274737,1775903432503,-500.0,9.293e-05,2]
[420274738,1775903432515,-500.0,9.293e-05,2]
[420274739,1775903432533,-500.0,9.318e-05,2]
[420274740,1775903432557,-374.06777123,9.318e-05,2]
[420274741,1775903432611,-500.0,9.318e-05,2]
[420274742,1775903432631,-560.64531787,9.318e-05,2]
[420274743,1775903432664,-500.0,9.318e-05,2]
[420274744,1775903432700,-500.0,9.318e-05,2]
[420274745,1775903432764,-255.18091773,9.318e-05,2]
[420274746,1775903432802,-244.81908227,9.318e-05,2]
[420274747,1775903432823,-500.0,9.318e-05,2]
[420274748,1775903432843,-500.0,9.318e-05,2]
[420274749,1775903432867,-500.0,9.318e-05,2]
[420274750,1775903432887,-145.60840029,9.318e-05,2]
[420274751,1775903432906,-354.39159971,9.318e-05,2]
[420274752,1775903432919,-500.0,9.318e-05,2]
[420274753,1775903432937,-265.3256459,9.318e-05,2]
[420274759,1775903438703,-234.6743541,9.318e-05,2]
[420274760,1775903438717,-209.53016695,9.318e-05,2]
[420274761,1775903438745,-497.61339417,9.318e-05,2]
[420274762,1775903438756,-2.38660583,9.318e-05,2]
[420274763,1775903438774,-500.0,9.318e-05,2]
[420274764,1775903438785,-500.0,9.318e-05,2]
[420274765,1775903438796,-500.0,9.318e-05,2]
[420274766,1775903439036,-188.16908525,9.318e-05,2]
[420274767,1775903439065,-500.0,9.318e-05,2]
[420274768,1775903439086,-179.31876256,9.318e-05,2]
[420274769,1775903439096,-500.0,9.318e-05,2]
[420274770,1775903439106,-500.0,9.318e-05,2]
[420274771,1775903439117,-500.0,9.318e-05,2]
[420274772,1775903439132,-500.0,9.318e-05,2]
[420274773,1775903439142,-500.0,9.318e-05,2]
[420274774,1775903439153,-500.0,9.318e-05,2]
[420274775,1775903439165,-500.0,9.318e-05,2]
[420274776,1775903439175,-274.98572415,9.318e-05,2]
[420274777,1775903439186,-500.0,9.318e-05,2]
[420274778,1775903439196,-500.0,9.318e-05,2]
[420274779,1775903439208,-500.0,9.318e-05,2]
[420274780,1775903439218,-500.0,9.318e-05,2]
[420274781,1775903439227,-500.0,9.318e-05,2]
[420274782,1775903439242,-500.0,9.318e-05,2]
[420274783,1775903439251,-541.84625641,9.318e-05,2]
[420274784,1775903439260,-500.0,9.318e-05,2]
[420274785,1775903439270,-500.0,9.318e-05,2]
[420274786,1775903439286,-500.0,9.318e-05,2]
[420274787,1775903439296,-500.0,9.318e-05,2]
[420274788,1775903439308,-500.0,9.318e-05,2]
[420274789,1775903439322,-500.0,9.318e-05,2]
[420274790,1775903439335,-500.0,9.318e-05,2]
[420274791,1775903439346,-500.0,9.318e-05,2]
[420274792,1775903439361,-500.0,9.318e-05,2]
[420274793,1775903439375,-500.0,9.318e-05,2]
[420274794,1775903439397,-500.0,9.318e-05,2]
[420274795,1775903439407,-500.0,9.318e-05,2]
[420274796,1775903439418,-267.54827749,9.318e-05,2]
[420274797,1775903439442,-504.64958404,9.318e-05,2]
[420274798,1775903439451,-500.0,9.318e-05,2]
[420274799,1775903439473,-500.0,9.318e-05,2]
[420274800,1775903439492,-450.39437353,9.318e-05,2]
[420274801,1775903439506,-500.0,9.318e-05,2]
[420274802,1775903439523,-500.0,9.318e-05,2]
[420274803,1775903439536,-498.43605702,9.318e-05,2]
[420274804,1775903439554,-17472.6760433,9.319e-05,2]
[420274805,1775903439577,-15984.68880097,9.319e-05,2]
[420274806,1775903439615,-100743.59107368,9.319e-05,2]
[420274816,1775903441292,-6950.0,9.319e-05,2]
[420274819,1775903441395,-657.01944389,9.319e-05,2]
[420274820,1775903441415,-1019.05201729,9.319e-05,2]
[420274824,1775903446543,-45966.56643804,9.319e-05,2]
[420274825,1775903446557,-74259.82848203,9.319e-05,2]
[420274826,1775903446610,-24700.2526107,9.319e-05,2]
[420274827,1775903446672,-276.5150003,9.319e-05,2]
[420274834,1775903449192,-468.942,9.319e-05,2]
[420274835,1775903449207,-5352.49999837,9.319e-05,2]
[420274836,1775903449260,-1179.67946753,9.319e-05,2]
[420274837,1775903449276,-3256.23330091,9.319e-05,2]
[420274917,1775903653274,5000.0,9e-05,2]
[420274918,1775903675502,5000.0,9e-05,2]
[420274920,1775903697431,5000.0,9e-05,2]
[420274925,1775903719394,5000.0,9e-05,2]
[420274927,1775903732821,154.14977173,8.761e-05,2]
[420274964,1775903883867,223.96082055,8.813e-05,2]
[420274989,1775904098417,269.936,8.937e-05,2]
[420275006,1775904515349,3943.37363152,8.626e-05,2]
[420275008,1775904520382,986.83023812,8.626e-05,2]
[420275026,1775904562505,251.93589074,8.924e-05,2]
[420275028,1775904567670,1580.14532001,8.918e-05,2]
[420275031,1775904594827,721.53131137,8.626e-05,2]
[420275039,1775904632455,-300.0,9.017e-05,2]
[420275040,1775904632470,-300.0,9.017e-05,2]
[420275042,1775904632498,-1200.0,9.017e-05,2]
[420275044,1775904632510,-261.84743986,9.018e-05,2]
[420275046,1775904632533,-500.0,9.018e-05,2]
[420275048,1775904632547,-500.0,9.018e-05,2]
[420275050,1775904632557,-500.0,9.018e-05,2]
[420275053,1775904632580,-500.0,9.018e-05,2]
[420275054,1775904632593,-500.0,9.018e-05,2]
[420275056,1775904632605,-438.15256014,9.018e-05,2]
[420275059,1775904632637,-61.84743986,9.018e-05,2]
[420275061,1775904632652,-500.0,9.018e-05,2]
[420275063,1775904632667,-519.92430695,9.018e-05,2]
[420275065,1775904632677,-500.0,9.018e-05,2]
[420275067,1775904632689,-501.92628417,9.018e-05,2]
[420275069,1775904632709,-303.68764557,9.018e-05,2]
[420275071,1775904632721,-500.0,9.018e-05,2]
[420275073,1775904632730,-500.0,9.018e-05,2]
[420275075,1775904632755,-500.0,9.018e-05,2]
[420275077,1775904632764,-158.20976381,9.018e-05,2]
[420275444,1775904638744,-341.79023619,9.018e-05,2]
[420275447,1775904638758,-354.24100947,9.018e-05,2]
[420275449,1775904638771,-546.0,9.018e-05,2]
[420275450,1775904638789,-2334.0717215,9.019e-05,2]
[420275453,1775904638805,-874.14444355,9.019e-05,2]
[420275456,1775904638858,-30375.24009932,9.019e-05,2]
[420275459,1775904638902,-57333.46141362,9.019e-05,2]
[420275622,1775904641262,-3785.29703496,9.019e-05,2]
[420275624,1775904641281,-397.19,9.019e-05,2]
[420275794,1775904643620,-22087.4661854,9.019e-05,2]
[420275992,1775904646574,-15849.56779888,9.019e-05,2]
[420276009,1775904646758,-3831.67474143,9.019e-05,2]
[420276429,1775904662385,5000.0,9e-05,2]
[420277246,1775904698415,215.948,8.839e-05,2]
[420277249,1775904702111,226819.24750612,8.919e-05,2]
[420277252,1775904708363,197.6034581,8.276e-05,2]
[420277254,1775904727064,1874.65562877,9e-05,2]
[420277259,1775904869452,1103330.64913515,8.919e-05,2]
[420277263,1775904958248,167.197581,8.192e-05,2]
[420277264,1775904958422,167.197581,8.192e-05,120]
[420277265,1775904961814,176062.4847463,8.919e-05,2]
[420277266,1775904961867,1000000.0,8.919e-05,2]
[420277267,1775904961917,1228.0,8.919e-05,2]
[420277268,1775904961955,1228.0,8.919e-05,2]
[420277290,1775905538330,-300.0,7.92e-05,2]
[420277291,1775905538365,-41.1081435,7.92e-05,2]
[420277292,1775905538425,-414.48375,7.92e-05,2]
[420277294,1775905598155,-531.0,7.92e-05,2]
[420277295,1775905617206,-455.4746423,8.273e-05,2]
[420277297,1775905631172,-80.5253577,8.273e-05,2]
[420277299,1775905674261,-455.4746423,8.273e-05,2]
[420277312,1775905832796,-1500.0,8.719e-05,2]
[420277313,1775905832805,-300.0,8.792e-05,2]
[420277314,1775905832816,-1200.0,8.792e-05,2]
[420277315,1775905832826,-643.6503125,8.793e-05,2]
[420277316,1775905832835,-500.0,8.793e-05,2]
[420277317,1775905832844,-500.0,8.793e-05,2]
[420277326,1775905833065,-91.27640297,8.793e-05,2]
[420277329,1775905833086,-394.71312553,8.793e-05,2]
[420277331,1775905833122,-500.0,8.793e-05,2]
[420277333,1775905833131,-160.0,8.793e-05,2]
[420277334,1775905833143,-158.2,8.793e-05,2]
[420277335,1775905833155,-168.0,8.793e-05,2]
[420277336,1775905833167,-159.98,8.793e-05,2]
[420277337,1775905833177,-500.0,8.793e-05,2]
[420277338,1775905833193,-500.0,8.793e-05,2]
[420277339,1775905833212,-500.0,8.793e-05,2]
[420277340,1775905833223,-500.0,8.793e-05,2]
[420277341,1775905833235,-202.03832213,8.793e-05,2]
[420277342,1775905833250,-500.0,8.793e-05,2]
[420277343,1775905833279,-500.0,8.793e-05,2]
[420277344,1775905833290,-500.0,8.793e-05,2]
[420277345,1775905833313,-500.0,8.793e-05,2]
[420277346,1775905833328,-495.65424734,8.793e-05,2]
[420277353,1775905838963,-12.30013981,8.793e-05,2]
[420277355,1775905838978,-500.0,8.793e-05,2]
[420277356,1775905838991,-945.79323144,8.818e-05,2]
[420277377,1775905841816,-3892.51191721,8.818e-05,2]
[420277383,1775905844049,-4329.31791359,8.818e-05,2]
[420277384,1775905844064,-500.0,8.818e-05,2]
[420277385,1775905844076,-183.29320791,8.818e-05,2]
[420277386,1775905844085,-500.0,8.818e-05,2]
[420277387,1775905844094,-500.0,8.818e-05,2]
[420277388,1775905844109,-500.0,8.818e-05,2]
[420277389,1775905844121,-513.65617178,8.818e-05,2]
[420277390,1775905844131,-500.0,8.818e-05,2]
[420277391,1775905844143,-500.0,8.818e-05,2]
[420277392,1775905844159,-500.0,8.818e-05,2]
[420277393,1775905844168,-500.0,8.818e-05,2]
[420277394,1775905844179,-330.93570124,8.818e-05,2]
[420277395,1775905844199,-515.37134409,8.818e-05,2]
[420277396,1775905844209,-500.0,8.818e-05,2]
[420277397,1775905844222,-500.0,8.818e-05,2]
[420277398,1775905844234,-399.38215956,8.818e-05,2]
[420277399,1775905844254,-500.0,8.818e-05,2]
[420277400,1775905844269,-500.0,8.818e-05,2]
[420277401,1775905844284,-448.53106748,8.818e-05,2]
[420277402,1775905844302,-1588.19595276,8.819e-05,2]
[420277403,1775905844318,-4929.73008878,8.819e-05,2]
[420277407,1775905847040,-1874.65562877,8.819e-05,2]
[420277439,1775907031154,226.86753,5.001e-05,2]
[420277456,1775907032614,-5000.0,8.037e-05,2]
[420277575,1775907038318,-534.0,8.118e-05,2]
[420277577,1775907038419,-478.0283812,8.246e-05,2]
[420277578,1775907038513,-172.759,8.447e-05,2]
[420277579,1775907038605,-300.0,8.492e-05,2]
[420277581,1775907038691,-300.0,8.492e-05,2]
[420277583,1775907038735,-290.22259914,8.492e-05,2]
[420277585,1775907038785,-9.77740086,8.492e-05,2]
[420277587,1775907038816,-300.0,8.492e-05,2]
[420277588,1775907038859,-1200.0,8.492e-05,2]
[420277589,1775907038883,-990.16060376,8.493e-05,2]
[420277590,1775907038903,-500.0,8.493e-05,2]
[420277591,1775907038925,-500.0,8.493e-05,2]
[420277592,1775907038958,-500.0,8.493e-05,2]
[420277593,1775907038979,-349.58365933,8.493e-05,2]
[420277594,1775907039020,-500.0,8.493e-05,2]
[420277595,1775907039049,-500.0,8.493e-05,2]
[420277596,1775907039071,-500.0,8.493e-05,2]
[420277597,1775907039090,-629.47032603,8.518e-05,2]
[420277598,1775907039112,-7483.9605911,8.519e-05,2]
[420277601,1775907041924,-1806.30804927,8.519e-05,2]
[420277605,1775907043209,-585.75366434,8.519e-05,2]
[420277667,1775907046137,-1077.33476705,8.519e-05,2]
[420277675,1775907046294,-64103.97726437,8.519e-05,2]
[420278854,1775907064535,-300.0,8.518e-05,2]
[420282685,1775908243343,-4836.42379625,7.825e-05,2]
[420282686,1775908243367,-259.0,7.825e-05,2]
[420282687,1775908243380,-110.12274289,7.925e-05,2]
[420282688,1775908243500,-47.50659248,7.925e-05,2]
[420282689,1775908243531,-1454.0,7.925e-05,2]
[420282694,1775908246499,-302.85441463,7.747e-05,2]
[420282695,1775908246513,-152.86670679,8.036e-05,2]
[420282696,1775908246530,-1200.0,8.415e-05,2]
[420282697,1775908246540,-300.0,8.516e-05,2]
[420282698,1775908246559,-2240.88111893,8.517e-05,2]
[420282699,1775908246578,-152.0,8.517e-05,2]
[420282700,1775908246598,-152.0,8.517e-05,2]
[420282701,1775908246610,-152.0,8.517e-05,2]
[420282702,1775908246627,-152.0,8.517e-05,2]
[420282703,1775908246646,-510.34844458,8.518e-05,2]
[420282704,1775908246660,-626.63234992,8.519e-05,2]
[420282705,1775908246676,-155.0,8.519e-05,2]
[420282706,1775908246689,-648.0,8.519e-05,2]
[420282707,1775908246705,-152.0,8.52e-05,2]
[420282708,1775908246716,-152.0,8.52e-05,2]
[420282709,1775908246726,-152.0,8.52e-05,2]
[420282710,1775908246742,-152.0,8.52e-05,2]
[420282711,1775908246754,-152.0,8.52e-05,2]
[420282712,1775908246763,-152.0,8.52e-05,2]
[420282713,1775908246777,-152.0,8.52e-05,2]
[420282714,1775908246792,-152.0,8.52e-05,2]
[420282715,1775908246804,-152.0,8.52e-05,2]
[420282716,1775908246816,-152.0,8.52e-05,2]
[420282717,1775908246834,-152.0,8.522e-05,2]
[420282718,1775908246845,-152.0,8.522e-05,2]
[420282719,1775908246854,-152.0,8.522e-05,2]
[420282720,1775908246872,-152.0,8.522e-05,2]
[420282721,1775908246882,-152.0,8.522e-05,2]
[420282722,1775908246892,-152.0,8.522e-05,2]
[420282723,1775908246906,-152.0,8.522e-05,2]
[420282724,1775908246922,-152.0,8.522e-05,2]
[420282725,1775908246934,-152.0,8.522e-05,2]
[420282726,1775908246948,-460.0,8.8e-05,2]
[420282727,1775908246958,-424.18729666,8.801e-05,2]
[420282728,1775908246974,-500.0,8.801e-05,2]
[420282729,1775908246984,-2150.738,8.801e-05,2]
[420282730,1775908247003,-189.28929303,8.801e-05,2]
[420282746,1775908862776,-300.0,8.077e-05,2]
[420282757,1775909245272,-500.0,7.408e-05,2]
[420282758,1775909247590,-500.0,7.408e-05,2]
[420282759,1775909250987,-500.0,7.408e-05,2]
[420282760,1775909279682,-500.0,7.408e-05,2]
[420282761,1775909288738,-500.0,7.408e-05,2]
[420282779,1775909432264,-5000.0,7.334e-05,2]
[420282781,1775909432278,-525.0,7.408e-05,2]
[420282783,1775909432300,-454.2392854,7.506e-05,2]
[420282785,1775909432321,-342.7776756,7.559e-05,2]
[420282787,1775909432344,-276.36,7.559e-05,2]
[420282789,1775909432362,-580.8623244,7.559e-05,2]
[420282790,1775909432374,-416.45989797,7.56e-05,2]
[420282793,1775909432392,-1288.35269853,7.56e-05,2]
[420282795,1775909432406,-300.0,7.632e-05,2]
[420282797,1775909432418,-300.0,7.633e-05,2]
[420282799,1775909432430,-300.0,7.633e-05,2]
[420282800,1775909432439,-300.0,7.633e-05,2]
[420282802,1775909432451,-300.0,7.633e-05,2]
[420282804,1775909432461,-300.0,7.633e-05,2]
[420282806,1775909432478,-300.0,7.633e-05,2]
[420282808,1775909432488,-300.0,7.633e-05,2]
[420282810,1775909432498,-300.0,7.633e-05,2]
[420282811,1775909432510,-300.0,7.633e-05,2]
[420282813,1775909432527,-300.0,7.633e-05,2]
[420282815,1775909432539,-300.0,7.633e-05,2]
[420282817,1775909432551,-300.0,7.633e-05,2]
[420282819,1775909432570,-300.0,7.633e-05,2]
[420282821,1775909432583,-300.0,7.633e-05,2]
[420282823,1775909432594,-300.0,7.633e-05,2]
[420282824,1775909432617,-938.91400465,7.958e-05,2]
[420282826,1775909432629,-2812.4553454,7.958e-05,2]
[420282828,1775909432656,-939.44501717,7.958e-05,2]
[420282830,1775909432681,-138.64414425,8.08e-05,2]
[420282832,1775909432698,-179.35585575,8.08e-05,2]
[420282834,1775909432734,-500.0,8.16e-05,2]
[420282836,1775909432743,-730.31111406,8.314e-05,2]
[420282920,1775909438635,-5000.0,7.261e-05,2]
[420282921,1775909438646,-414.46594482,7.958e-05,2]
[420282922,1775909438657,-949.68888594,8.314e-05,2]
[420282923,1775909438667,-325.1916262,8.328e-05,2]
[420282924,1775909438680,-1656.20591551,8.377e-05,2]
[420282925,1775909438690,-420.0,8.395e-05,2]
[420282926,1775909438699,-215.347352,8.585e-05,2]
[420282927,1775909438708,-152.0,8.586e-05,2]